[Event "*** Titled Tuesday Blitz"]
[Site "Chess.com"]
[Date "2020.11.10"]
[Round "8"]
[White "WiktoriaPOL"]
[Black "The_Machine04"]
[Result "0-1"]
[WhiteElo "2097"]
[BlackElo "2287"]
[TimeControl "180+1"]
[EndTime "11:36:14 PST"]
[Termination "The_Machine04 won on time"]

1. c4 {[%clk 0:03:00.9]} 1... d6 {[%clk 0:03:00.9]} 2. Nc3 {[%clk 0:02:59.7]}
2... Nf6 {[%clk 0:03:00.3]} 3. g3 {[%clk 0:02:55.9]} 3... e5 {[%clk 0:02:59.3]}
4. Bg2 {[%clk 0:02:56.2]} 4... c6 {[%clk 0:02:51.3]} 5. d4 {[%clk 0:02:53.3]}
5... Nbd7 {[%clk 0:02:48.4]} 6. dxe5 {[%clk 0:02:47.3]} 6... dxe5 {[%clk
0:02:47.5]} 7. Nf3 {[%clk 0:02:45.4]} 7... Be7 {[%clk 0:02:45.2]} 8. O-O {[%clk
0:02:44.7]} 8... O-O {[%clk 0:02:43.9]} 9. b3 {[%clk 0:02:39.9]} 9... Qc7 {[%clk
0:02:42.3]} 10. Bb2 {[%clk 0:02:39.2]} 10... Re8 {[%clk 0:02:39]} 11. Qc2 {[%clk
0:02:38.6]} 11... a5 {[%clk 0:02:32.6]} 12. Rad1 {[%clk 0:02:35.2]} 12... Bc5
{[%clk 0:02:23.3]} 13. Ne4 {[%clk 0:02:24.1]} 13... Nxe4 {[%clk 0:02:19.9]} 14.
Qxe4 {[%clk 0:02:22.8]} 14... f6 {[%clk 0:02:04.7]} 15. a3 {[%clk 0:01:53.4]}
15... Nf8 {[%clk 0:01:55]} 16. Qc2 {[%clk 0:01:49.2]} 16... Be6 {[%clk 0:01:44]}
17. Nd2 {[%clk 0:01:41.8]} 17... Rad8 {[%clk 0:01:17.3]} 18. Ne4 {[%clk
0:01:38.1]} 18... Be7 {[%clk 0:01:00.5]} 19. Rxd8 {[%clk 0:01:15.7]} 19... Rxd8
{[%clk 0:00:58]} 20. Rd1 {[%clk 0:01:16.2]} 20... Rxd1+ {[%clk 0:00:53.9]} 21.
Qxd1 {[%clk 0:01:15.5]} 21... Qd7 {[%clk 0:00:52.9]} 22. Qxd7 {[%clk 0:01:13.5]}
22... Nxd7 {[%clk 0:00:53.8]} 23. Bc3 {[%clk 0:01:08.4]} 23... Bxa3 {[%clk
0:00:49.8]} 24. Bxa5 {[%clk 0:01:07.5]} 24... Nc5 {[%clk 0:00:47.8]} 25. Nxc5
{[%clk 0:01:01]} 25... Bxc5 {[%clk 0:00:48.7]} 26. b4 {[%clk 0:01:00.7]} 26...
Bd4 {[%clk 0:00:29.9]} 27. e3 {[%clk 0:00:55.7]} 27... Bc3 {[%clk 0:00:28]} 28.
c5 {[%clk 0:00:52.2]} 28... Kf7 {[%clk 0:00:20.5]} 29. Kf1 {[%clk 0:00:51.4]}
29... f5 {[%clk 0:00:19.4]} 30. Ke2 {[%clk 0:00:50.9]} 30... Bc4+ {[%clk
0:00:17.9]} 31. Kd1 {[%clk 0:00:50.3]} 31... e4 {[%clk 0:00:13]} 32. Kc2 {[%clk
0:00:43.8]} 32... Be1 {[%clk 0:00:12.3]} 33. f3 {[%clk 0:00:43.7]} 33... Bd5
{[%clk 0:00:07.9]} 34. fxe4 {[%clk 0:00:39.6]} 34... fxe4 {[%clk 0:00:08.8]} 35.
Kd1 {[%clk 0:00:39.1]} 35... Bc3 {[%clk 0:00:08.4]} 36. Kc2 {[%clk 0:00:37.8]}
36... Be5 {[%clk 0:00:08.4]} 37. Bd8 {[%clk 0:00:28.3]} 37... h6 {[%clk
0:00:06.8]} 38. Bh3 {[%clk 0:00:24.2]} 38... Ke8 {[%clk 0:00:06.6]} 39. Bb6
{[%clk 0:00:23.6]} 39... Bc4 {[%clk 0:00:03.9]} 40. Bc8 {[%clk 0:00:21.9]} 40...
Ba6 {[%clk 0:00:04]} 41. Bf5 {[%clk 0:00:20.6]} 41... Bd3+ {[%clk 0:00:03.1]}
42. Kd2 {[%clk 0:00:18.3]} 42... g5 {[%clk 0:00:02.9]} 43. Bg6+ {[%clk
0:00:14.3]} 43... Ke7 {[%clk 0:00:02.4]} 44. Bf5 {[%clk 0:00:13.7]} 44... Kf6
{[%clk 0:00:01.9]} 45. Bc8 {[%clk 0:00:12.5]} 45... Ba6 {[%clk 0:00:02.5]} 46.
Bd7 {[%clk 0:00:08.1]} 46... Ke7 {[%clk 0:00:02.5]} 47. Bf5 {[%clk 0:00:07.8]}
47... Bd3 {[%clk 0:00:01.9]} 48. Bc8 {[%clk 0:00:05.3]} 48... Ba6 {[%clk
0:00:01.9]} 49. Bf5 {[%clk 0:00:05.3]} 49... Bd3 {[%clk 0:00:02.8]} 50. Kc1
{[%clk 0:00:04.4]} 50... Ba6 {[%clk 0:00:03.7]} 51. Bxe4 {[%clk 0:00:04.3]}
51... Kf6 {[%clk 0:00:04.6]} 52. Bc2 {[%clk 0:00:04.3]} 52... Bc3 {[%clk
0:00:04.8]} 53. e4 {[%clk 0:00:04.6]} 53... Ke5 {[%clk 0:00:05.1]} 54. Bc7+
{[%clk 0:00:04]} 54... Kd4 {[%clk 0:00:05.1]} 55. e5 {[%clk 0:00:04.4]} 55...
Bxb4 {[%clk 0:00:05.5]} 56. e6 {[%clk 0:00:04.4]} 56... Bxc5 {[%clk 0:00:05.8]}
57. Bd8 {[%clk 0:00:03.7]} 57... Ke5 {[%clk 0:00:06]} 58. e7 {[%clk 0:00:04]}
58... Bxe7 {[%clk 0:00:06.6]} 59. Bxe7 {[%clk 0:00:04.6]} 59... Bc4 {[%clk
0:00:04.7]} 60. Bf8 {[%clk 0:00:04.8]} 60... h5 {[%clk 0:00:04.5]} 61. Bh6
{[%clk 0:00:04.9]} 61... Kf6 {[%clk 0:00:04]} 62. Bf8 {[%clk 0:00:03.9]} 62...
Be6 {[%clk 0:00:03.8]} 63. Bc5 {[%clk 0:00:04]} 63... Bf5 {[%clk 0:00:03.5]} 64.
Kd2 {[%clk 0:00:04.3]} 64... Bxc2 {[%clk 0:00:02.7]} 65. Kxc2 {[%clk 0:00:05.2]}
65... Kf5 {[%clk 0:00:03.5]} 66. Kd3 {[%clk 0:00:05.2]} 66... Kg4 {[%clk
0:00:03.7]} 67. Ke2 {[%clk 0:00:04.2]} 67... Kh3 {[%clk 0:00:03.5]} 68. Bg1
{[%clk 0:00:02.7]} 68... Kg2 {[%clk 0:00:03.4]} 69. Be3 {[%clk 0:00:01.9]} 69...
Kxh2 {[%clk 0:00:02.8]} 70. Kf2 {[%clk 0:00:01.4]} 70... g4 {[%clk 0:00:02.8]}
71. Bf4 {[%clk 0:00:01.3]} 71... Kh3 {[%clk 0:00:03.1]} 72. Be3 {[%clk
0:00:01.5]} 72... h4 {[%clk 0:00:02.6]} 73. Bf4 {[%clk 0:00:01.2]} 73... hxg3+
{[%clk 0:00:02.3]} 74. Bxg3 {[%clk 0:00:02.1]} 74... b5 {[%clk 0:00:02.4]} 75.
Bf4 {[%clk 0:00:02.4]} 75... c5 {[%clk 0:00:01.5]} 76. Be3 {[%clk 0:00:02.4]}
76... c4 {[%clk 0:00:01.8]} 77. Bd2 {[%clk 0:00:02.2]} 77... g3+ {[%clk
0:00:02]} 78. Kg1 {[%clk 0:00:02.5]} 78... Kg4 {[%clk 0:00:02.2]} 79. Bc3 {[%clk
0:00:02.8]} 79... Kf3 {[%clk 0:00:01.9]} 80. Bb4 {[%clk 0:00:03.1]} 80... Ke2
{[%clk 0:00:02.1]} 81. Kg2 {[%clk 0:00:03.6]} 81... Kd3 {[%clk 0:00:02.8]} 82.
Kxg3 {[%clk 0:00:04.2]} 82... c3 {[%clk 0:00:03.5]} 83. Ba3 {[%clk 0:00:03.8]}
83... c2 {[%clk 0:00:03.9]} 84. Kf2 {[%clk 0:00:03.5]} 84... b4 {[%clk
0:00:01.5]} 85. Bc1 {[%clk 0:00:02.8]} 85... b3 {[%clk 0:00:02.1]} 86. Kf3
{[%clk 0:00:02.8]} 86... Kc3 {[%clk 0:00:03]} 87. Ke3 {[%clk 0:00:02.6]} 87...
b2 {[%clk 0:00:03.9]} 88. Bd2+ {[%clk 0:00:02.5]} 88... Kb3 {[%clk 0:00:03.9]}
89. Kd3 {[%clk 0:00:02]} 89... b1=Q {[%clk 0:00:03.9]} 90. Ke3 {[%clk
0:00:01.3]} 90... Qd1 {[%clk 0:00:04.8]} 91. Kd3 {[%clk 0:00:01]} 91... c1=Q
{[%clk 0:00:05.7]} 92. Ke3 {[%clk 0:00:01.2]} 92... Qcc2 {[%clk 0:00:06.6]} 0-1

[Event "*** Titled Tuesday Blitz"]
[Site "Chess.com"]
[Date "2020.11.10"]
[Round "9"]
[White "temus_galaktionov"]
[Black "MasterKroket"]
[Result "1-0"]
[WhiteElo "2616"]
[BlackElo "2428"]
[TimeControl "180+1"]
[EndTime "11:48:03 PST"]
[Termination "temus_galaktionov won by resignation"]

1. d4 {[%clk 0:02:42.3]} 1... Nf6 {[%clk 0:02:58.9]} 2. Nf3 {[%clk 0:02:43.2]}
2... e6 {[%clk 0:02:58.5]} 3. c4 {[%clk 0:02:43.6]} 3... b6 {[%clk 0:02:58.2]}
4. g3 {[%clk 0:02:43.5]} 4... Bb7 {[%clk 0:02:58.5]} 5. Bg2 {[%clk 0:02:43.7]}
5... Be7 {[%clk 0:02:59.2]} 6. Nc3 {[%clk 0:02:43.8]} 6... O-O {[%clk
0:02:59.5]} 7. Qc2 {[%clk 0:02:43.9]} 7... c5 {[%clk 0:02:54.2]} 8. d5 {[%clk
0:02:43.8]} 8... exd5 {[%clk 0:02:53.6]} 9. Nh4 {[%clk 0:02:44.4]} 9... Qc8
{[%clk 0:02:49.8]} 10. cxd5 {[%clk 0:02:44.1]} 10... d6 {[%clk 0:02:45.7]} 11.
Nf5 {[%clk 0:02:43.1]} 11... Re8 {[%clk 0:02:45.9]} 12. Nxe7+ {[%clk 0:02:43]}
12... Rxe7 {[%clk 0:02:46.1]} 13. Bf4 {[%clk 0:02:43.1]} 13... Qd7 {[%clk
0:02:33.9]} 14. O-O {[%clk 0:02:40.9]} 14... b5 {[%clk 0:02:21.9]} 15. Bg5
{[%clk 0:02:38.3]} 15... Re8 {[%clk 0:01:33.4]} 16. Bxf6 {[%clk 0:02:37.8]}
16... gxf6 {[%clk 0:01:33.6]} 17. Ne4 {[%clk 0:02:37.6]} 17... Qe7 {[%clk
0:01:31.1]} 18. Qc3 {[%clk 0:02:34.9]} 18... Nd7 {[%clk 0:01:30.5]} 19. Rad1
{[%clk 0:02:32.3]} 19... b4 {[%clk 0:01:29.5]} 20. Qf3 {[%clk 0:02:31.5]} 20...
Qe5 {[%clk 0:01:25]} 21. Qg4+ {[%clk 0:02:31.3]} 21... Kh8 {[%clk 0:01:17.7]}
22. Qxd7 {[%clk 0:02:31.4]} 22... Re7 {[%clk 0:01:18.1]} 23. Qxd6 {[%clk
0:02:31.3]} 1-0

[Event "*** Titled Tuesday Blitz"]
[Site "Chess.com"]
[Date "2020.11.10"]
[Round "9"]
[White "RobPeresian"]
[Black "ARTHURMOTIVATOR"]
[Result "0-1"]
[WhiteElo "2443"]
[BlackElo "2368"]
[TimeControl "180+1"]
[EndTime "11:48:21 PST"]
[Termination "ARTHURMOTIVATOR won by resignation"]

1. Nf3 {[%clk 0:03:00.9]} 1... Nf6 {[%clk 0:02:52.6]} 2. c4 {[%clk 0:02:58.1]}
2... g6 {[%clk 0:02:51.9]} 3. Nc3 {[%clk 0:02:54.7]} 3... Bg7 {[%clk 0:02:52.1]}
4. e4 {[%clk 0:02:54.7]} 4... d6 {[%clk 0:02:52.4]} 5. d4 {[%clk 0:02:55.2]}
5... O-O {[%clk 0:02:52.6]} 6. h3 {[%clk 0:02:55.7]} 6... c5 {[%clk 0:02:47.7]}
7. d5 {[%clk 0:02:56]} 7... e6 {[%clk 0:02:43.7]} 8. Bd3 {[%clk 0:02:56.3]} 8...
Na6 {[%clk 0:02:43.4]} 9. O-O {[%clk 0:02:56.1]} 9... e5 {[%clk 0:02:43.8]} 10.
Bg5 {[%clk 0:02:50.5]} 10... h6 {[%clk 0:02:42.5]} 11. Be3 {[%clk 0:02:49.7]}
11... Nh7 {[%clk 0:02:42.2]} 12. Qc1 {[%clk 0:02:44.7]} 12... f5 {[%clk
0:02:40.6]} 13. Bxh6 {[%clk 0:02:40.3]} 13... f4 {[%clk 0:02:40.1]} 14. Bxg7
{[%clk 0:02:39.7]} 14... Kxg7 {[%clk 0:02:41]} 15. Nh2 {[%clk 0:02:37.4]} 15...
Ng5 {[%clk 0:02:27.2]} 16. Be2 {[%clk 0:02:35.5]} 16... Nxh3+ {[%clk 0:02:13.5]}
17. gxh3 {[%clk 0:02:36.4]} 17... Bxh3 {[%clk 0:02:12.1]} 18. Bg4 {[%clk
0:02:26.4]} 18... Bxg4 {[%clk 0:01:57.5]} 19. Nxg4 {[%clk 0:02:24.7]} 19... Qh4
{[%clk 0:01:56.2]} 20. Qd1 {[%clk 0:01:55.4]} 20... f3 {[%clk 0:01:38.4]} 21.
Ne3 {[%clk 0:01:51.5]} 21... Qg5+ {[%clk 0:01:35.7]} 0-1

[Event "*** Titled Tuesday Blitz"]
[Site "Chess.com"]
[Date "2020.11.10"]
[Round "9"]
[White "juli2512"]
[Black "Forantes"]
[Result "0-1"]
[WhiteElo "2094"]
[BlackElo "2344"]
[TimeControl "180+1"]
[EndTime "11:48:27 PST"]
[Termination "Forantes won by resignation"]

1. e4 {[%clk 0:03:00.9]} 1... c5 {[%clk 0:02:59.4]} 2. Nf3 {[%clk 0:02:59.9]}
2... Nc6 {[%clk 0:02:58.9]} 3. d3 {[%clk 0:03:00.3]} 3... d5 {[%clk 0:02:58.7]}
4. exd5 {[%clk 0:02:59.6]} 4... Qxd5 {[%clk 0:02:59.6]} 5. Nc3 {[%clk
0:03:00.1]} 5... Qh5 {[%clk 0:03:00.1]} 6. Be3 {[%clk 0:02:50.8]} 6... Bg4
{[%clk 0:02:57.8]} 7. Be2 {[%clk 0:02:47]} 7... e5 {[%clk 0:02:38.3]} 8. Qd2
{[%clk 0:02:37.4]} 8... Qg6 {[%clk 0:02:31.1]} 9. h3 {[%clk 0:02:28.2]} 9...
Bxf3 {[%clk 0:02:30.8]} 10. Bxf3 {[%clk 0:02:26.5]} 10... O-O-O {[%clk
0:02:31.7]} 11. O-O {[%clk 0:02:05.6]} 11... f5 {[%clk 0:02:31.5]} 12. Qe2
{[%clk 0:01:30.3]} 12... f4 {[%clk 0:02:30.4]} 13. Bd2 {[%clk 0:01:25.6]} 13...
Nd4 {[%clk 0:02:30.4]} 14. Qd1 {[%clk 0:01:25.2]} 14... Nf6 {[%clk 0:02:27.3]}
15. a4 {[%clk 0:01:17.9]} 15... Bd6 {[%clk 0:02:26.8]} 16. Nb5 {[%clk
0:01:14.3]} 16... Bb8 {[%clk 0:02:26.4]} 17. c3 {[%clk 0:01:12]} 17... Nxf3+
{[%clk 0:02:25.5]} 18. Qxf3 {[%clk 0:01:11.7]} 18... Rxd3 {[%clk 0:02:25.9]} 19.
Qe2 {[%clk 0:00:54.4]} 19... f3 {[%clk 0:02:26.1]} 0-1

[Event "*** Titled Tuesday Blitz"]
[Site "Chess.com"]
[Date "2020.11.10"]
[Round "9"]
[White "WPWPWP-2015"]
[Black "ljuks68"]
[Result "0-1"]
[WhiteElo "2516"]
[BlackElo "2391"]
[TimeControl "180+1"]
[EndTime "11:48:30 PST"]
[Termination "ljuks68 won on time"]

1. d4 {[%clk 0:03:00.9]} 1... d5 {[%clk 0:02:56.3]} 2. c4 {[%clk 0:02:59.5]}
2... c6 {[%clk 0:02:56.1]} 3. Nf3 {[%clk 0:02:58.8]} 3... Nf6 {[%clk 0:02:56.2]}
4. e3 {[%clk 0:02:56]} 4... e6 {[%clk 0:02:54.9]} 5. Nbd2 {[%clk 0:02:53.2]}
5... c5 {[%clk 0:02:54.9]} 6. cxd5 {[%clk 0:02:48.9]} 6... exd5 {[%clk
0:02:54.9]} 7. Bd3 {[%clk 0:02:46.3]} 7... c4 {[%clk 0:02:54.2]} 8. Be2 {[%clk
0:02:45.6]} 8... Bf5 {[%clk 0:02:52.6]} 9. O-O {[%clk 0:02:44.4]} 9... Bd6
{[%clk 0:02:50.8]} 10. Ne5 {[%clk 0:02:41.2]} 10... Nc6 {[%clk 0:02:47.6]} 0-1

[Event "*** Titled Tuesday Blitz"]
[Site "Chess.com"]
[Date "2020.11.10"]
[Round "9"]
[White "Hasangatin_Ramil"]
[Black "InitiatingASC"]
[Result "1-0"]
[WhiteElo "2567"]
[BlackElo "2412"]
[TimeControl "180+1"]
[EndTime "11:48:36 PST"]
[Termination "Hasangatin_Ramil won by resignation"]

1. e4 {[%clk 0:02:59.8]} 1... c5 {[%clk 0:02:59.4]} 2. Nf3 {[%clk 0:02:59.4]}
2... Nc6 {[%clk 0:02:59.6]} 3. Bb5 {[%clk 0:02:59.4]} 3... Nf6 {[%clk
0:02:59.5]} 4. e5 {[%clk 0:02:58.1]} 4... Nd5 {[%clk 0:02:59.6]} 5. O-O {[%clk
0:02:57]} 5... g6 {[%clk 0:02:59.5]} 6. Bxc6 {[%clk 0:02:55.5]} 6... dxc6 {[%clk
0:02:59.5]} 7. h3 {[%clk 0:02:55.5]} 7... Bg7 {[%clk 0:02:59.8]} 8. d3 {[%clk
0:02:55.1]} 8... O-O {[%clk 0:02:59.3]} 9. Re1 {[%clk 0:02:54.7]} 9... b6 {[%clk
0:02:55.5]} 10. Nbd2 {[%clk 0:02:52]} 10... Nc7 {[%clk 0:02:55.8]} 11. Ne4
{[%clk 0:02:50.9]} 11... Ne6 {[%clk 0:02:55.8]} 12. Be3 {[%clk 0:02:41.9]} 12...
Nd4 {[%clk 0:02:55.3]} 13. Nxd4 {[%clk 0:02:41.6]} 13... cxd4 {[%clk 0:02:55.6]}
14. Bf4 {[%clk 0:02:42.5]} 14... c5 {[%clk 0:02:53.2]} 15. Qd2 {[%clk 0:02:42]}
15... Bb7 {[%clk 0:02:50.3]} 16. Bh6 {[%clk 0:02:42]} 16... Qd5 {[%clk
0:02:48.5]} 17. Bxg7 {[%clk 0:02:41.3]} 17... Kxg7 {[%clk 0:02:48.5]} 18. Qf4
{[%clk 0:02:36.7]} 18... Rae8 {[%clk 0:02:35.6]} 19. f3 {[%clk 0:02:34.2]} 19...
f5 {[%clk 0:02:29.7]} 20. exf6+ {[%clk 0:02:22.6]} 20... exf6 {[%clk 0:02:26.2]}
21. Nd2 {[%clk 0:02:20.2]} 21... Qf7 {[%clk 0:02:21.9]} 22. a4 {[%clk
0:02:17.6]} 22... a5 {[%clk 0:02:20.9]} 23. Nc4 {[%clk 0:02:17.2]} 23... Re6
{[%clk 0:01:35.4]} 24. Nd6 {[%clk 0:01:59.4]} 24... Rxe1+ {[%clk 0:01:25.2]} 25.
Rxe1 {[%clk 0:01:57.8]} 25... Qc7 {[%clk 0:01:22.1]} 26. Nf5+ {[%clk 0:01:56.4]}
1-0

[Event "*** Titled Tuesday Blitz"]
[Site "Chess.com"]
[Date "2020.11.10"]
[Round "9"]
[White "WeAintSurePal"]
[Black "gui_borba"]
[Result "0-1"]
[WhiteElo "2300"]
[BlackElo "2433"]
[TimeControl "180+1"]
[EndTime "11:48:43 PST"]
[Termination "gui_borba won by resignation"]

1. d4 {[%clk 0:03:00.6]} 1... Nf6 {[%clk 0:02:59.9]} 2. Nf3 {[%clk 0:02:59.6]}
2... g6 {[%clk 0:03:00.4]} 3. Bg5 {[%clk 0:02:59.7]} 3... Bg7 {[%clk 0:03:00.7]}
4. Nbd2 {[%clk 0:03:00.3]} 4... d6 {[%clk 0:03:00.3]} 5. c3 {[%clk 0:03:00.6]}
5... O-O {[%clk 0:03:00.9]} 6. e4 {[%clk 0:03:01]} 6... c5 {[%clk 0:03:01.5]} 7.
e5 {[%clk 0:03:00.2]} 7... Nd5 {[%clk 0:02:58.6]} 8. exd6 {[%clk 0:02:57.1]}
8... Qxd6 {[%clk 0:02:59.5]} 9. dxc5 {[%clk 0:02:55.9]} 9... Qxc5 {[%clk
0:02:57.3]} 10. Be2 {[%clk 0:02:56.2]} 10... Nc6 {[%clk 0:02:56.6]} 11. O-O
{[%clk 0:02:56.2]} 11... h6 {[%clk 0:02:49.8]} 12. Bh4 {[%clk 0:02:55.7]} 12...
Nf4 {[%clk 0:02:49.6]} 13. Bc4 {[%clk 0:02:46.2]} 13... Bf5 {[%clk 0:02:40]} 14.
Bg3 {[%clk 0:02:44.2]} 14... Nd3 {[%clk 0:02:28.2]} 15. Bxd3 {[%clk 0:02:41.9]}
15... Bxd3 {[%clk 0:02:29]} 16. Nb3 {[%clk 0:02:42.3]} 16... Qb5 {[%clk
0:02:20.9]} 17. Re1 {[%clk 0:02:41.1]} 17... Bf5 {[%clk 0:02:16]} 18. a4 {[%clk
0:02:40.6]} 18... Qc4 {[%clk 0:02:08.1]} 19. Nbd2 {[%clk 0:02:34.3]} 19... Qd5
{[%clk 0:02:06.5]} 20. Nb3 {[%clk 0:02:33.4]} 20... Rad8 {[%clk 0:01:57.3]} 21.
Qxd5 {[%clk 0:02:33]} 21... Rxd5 {[%clk 0:01:58.2]} 22. a5 {[%clk 0:02:32.3]}
22... a6 {[%clk 0:01:47.4]} 23. h3 {[%clk 0:02:29.6]} 23... e5 {[%clk
0:01:45.4]} 24. Nfd2 {[%clk 0:02:27.4]} 24... Rfd8 {[%clk 0:01:38]} 25. Ne4
{[%clk 0:02:25.1]} 25... Bxe4 {[%clk 0:01:21.6]} 26. Rxe4 {[%clk 0:02:23.1]}
26... Rd1+ {[%clk 0:01:22.1]} 27. Rxd1 {[%clk 0:02:21.8]} 27... Rxd1+ {[%clk
0:01:23]} 28. Kh2 {[%clk 0:02:22.6]} 28... f5 {[%clk 0:01:23.4]} 29. Rc4 {[%clk
0:02:21.2]} 29... f4 {[%clk 0:01:23.3]} 30. Bxf4 {[%clk 0:02:16.9]} 30... exf4
{[%clk 0:01:24.2]} 31. Nc5 {[%clk 0:02:16]} 31... Nxa5 {[%clk 0:01:19.3]} 32.
Rb4 {[%clk 0:02:15]} 32... Bf8 {[%clk 0:01:15.8]} 0-1

[Event "*** Titled Tuesday Blitz"]
[Site "Chess.com"]
[Date "2020.11.10"]
[Round "9"]
[White "IwkooO"]
[Black "Barmen_EV"]
[Result "0-1"]
[WhiteElo "2615"]
[BlackElo "2448"]
[TimeControl "180+1"]
[EndTime "11:48:51 PST"]
[Termination "Barmen_EV won by resignation"]

1. e4 {[%clk 0:03:00.9]} 1... c5 {[%clk 0:03:00.4]} 2. Nf3 {[%clk 0:02:59.9]}
2... Nc6 {[%clk 0:03:01]} 3. d4 {[%clk 0:03:00.3]} 3... cxd4 {[%clk 0:03:01.9]}
4. Nxd4 {[%clk 0:03:01.1]} 4... e5 {[%clk 0:03:02.8]} 5. Nb5 {[%clk 0:03:00.9]}
5... d6 {[%clk 0:03:03]} 6. c4 {[%clk 0:03:01.2]} 6... Be7 {[%clk 0:03:02.6]} 7.
N1c3 {[%clk 0:03:01.2]} 7... a6 {[%clk 0:03:03.2]} 8. Na3 {[%clk 0:03:01.6]}
8... f5 {[%clk 0:03:04.1]} 9. exf5 {[%clk 0:03:00.4]} 9... Bxf5 {[%clk
0:03:04.8]} 10. Bd3 {[%clk 0:03:00.9]} 10... Be6 {[%clk 0:03:05.3]} 11. Nc2
{[%clk 0:02:57.7]} 11... Nf6 {[%clk 0:03:03.7]} 12. O-O {[%clk 0:02:56.5]} 12...
O-O {[%clk 0:03:03.6]} 13. Ne3 {[%clk 0:02:52.9]} 13... Qd7 {[%clk 0:03:04.1]}
14. Ned5 {[%clk 0:02:46.6]} 14... Rae8 {[%clk 0:02:55.2]} 15. Nxe7+ {[%clk
0:02:42.5]} 15... Rxe7 {[%clk 0:02:45.5]} 16. Bg5 {[%clk 0:02:42.7]} 16... Ref7
{[%clk 0:02:44.6]} 17. Bxf6 {[%clk 0:02:38.5]} 17... Rxf6 {[%clk 0:02:44.7]} 18.
Ne4 {[%clk 0:02:38.9]} 18... Rh6 {[%clk 0:02:22.6]} 19. Nxd6 {[%clk 0:02:32.7]}
19... Bg4 {[%clk 0:02:22]} 20. Qb3 {[%clk 0:02:13.7]} 20... Rxd6 {[%clk
0:02:14.9]} 21. c5+ {[%clk 0:02:10.4]} 21... Be6 {[%clk 0:02:02.7]} 22. Bc4
{[%clk 0:01:47.7]} 22... Bxc4 {[%clk 0:02:01.4]} 23. Qxc4+ {[%clk 0:01:47.8]}
23... Qe6 {[%clk 0:02:02.3]} 24. Qe4 {[%clk 0:01:34.3]} 24... Rd4 {[%clk
0:01:55.4]} 25. Qe2 {[%clk 0:01:34.5]} 25... Qd5 {[%clk 0:01:54.4]} 26. Rac1
{[%clk 0:01:28.7]} 26... Rd2 {[%clk 0:01:51.8]} 27. Qe3 {[%clk 0:01:28.6]} 27...
Rxb2 {[%clk 0:01:44.3]} 0-1

[Event "*** Titled Tuesday Blitz"]
[Site "Chess.com"]
[Date "2020.11.10"]
[Round "9"]
[White "Javylavilla"]
[Black "yourstrulyme"]
[Result "0-1"]
[WhiteElo "2253"]
[BlackElo "2389"]
[TimeControl "180+1"]
[EndTime "11:48:58 PST"]
[Termination "yourstrulyme won by resignation"]

1. e4 {[%clk 0:03:00.9]} 1... Nf6 {[%clk 0:03:00.9]} 2. e5 {[%clk 0:03:00]} 2...
Nd5 {[%clk 0:03:01.4]} 3. d4 {[%clk 0:02:57]} 3... d6 {[%clk 0:03:01.8]} 4. c4
{[%clk 0:02:53.8]} 4... Nb6 {[%clk 0:03:01.1]} 5. exd6 {[%clk 0:02:54.5]} 5...
cxd6 {[%clk 0:03:01.1]} 6. Nc3 {[%clk 0:02:54.7]} 6... g6 {[%clk 0:03:01.1]} 7.
Be3 {[%clk 0:02:47.7]} 7... Bg7 {[%clk 0:03:01.3]} 8. Rc1 {[%clk 0:02:47.9]}
8... O-O {[%clk 0:02:59.9]} 9. b3 {[%clk 0:02:47.7]} 9... e5 {[%clk 0:02:59.9]}
10. dxe5 {[%clk 0:02:34.8]} 10... dxe5 {[%clk 0:03:00.8]} 11. Qxd8 {[%clk
0:02:24.2]} 11... Rxd8 {[%clk 0:03:01.7]} 12. Nf3 {[%clk 0:02:06.6]} 12... Nc6
{[%clk 0:02:50.1]} 13. Be2 {[%clk 0:02:01.8]} 13... Nd4 {[%clk 0:02:34]} 14. O-O
{[%clk 0:01:48]} 14... Nxe2+ {[%clk 0:02:27.6]} 15. Nxe2 {[%clk 0:01:48.9]}
15... Bf5 {[%clk 0:02:27.9]} 16. Nc3 {[%clk 0:01:41]} 16... h6 {[%clk
0:02:24.9]} 17. Bxb6 {[%clk 0:01:38.4]} 17... axb6 {[%clk 0:02:24.4]} 18. a4
{[%clk 0:01:39.3]} 18... Rd3 {[%clk 0:02:13.7]} 19. Rfd1 {[%clk 0:01:36.6]}
19... Rxc3 {[%clk 0:02:05.9]} 20. Rxc3 {[%clk 0:01:34.9]} 20... e4 {[%clk
0:02:06.4]} 21. Nd4 {[%clk 0:01:35.1]} 21... Rd8 {[%clk 0:02:06.5]} 22. Rc2
{[%clk 0:01:14.8]} 22... Bxd4 {[%clk 0:01:55.3]} 23. Rcd2 {[%clk 0:01:14]} 23...
e3 {[%clk 0:01:55.4]} 24. Rxd4 {[%clk 0:01:10.8]} 24... Rxd4 {[%clk 0:01:55.5]}
25. Rxd4 {[%clk 0:01:10.8]} 25... e2 {[%clk 0:01:56.1]} 26. Rd8+ {[%clk
0:01:10.9]} 26... Kg7 {[%clk 0:01:56.7]} 27. Re8 {[%clk 0:01:11.2]} 27... Be6
{[%clk 0:01:57]} 0-1

[Event "*** Titled Tuesday Blitz"]
[Site "Chess.com"]
[Date "2020.11.10"]
[Round "9"]
[White "Boudicca64"]
[Black "Buryshin_Vasyl"]
[Result "1-0"]
[WhiteElo "1855"]
[BlackElo "2195"]
[TimeControl "180+1"]
[EndTime "11:49:04 PST"]
[Termination "Boudicca64 won by resignation"]

1. e4 {[%clk 0:02:57.2]} 1... c5 {[%clk 0:02:57.6]} 2. g3 {[%clk 0:02:55.4]}
2... Nc6 {[%clk 0:02:56.6]} 3. Bg2 {[%clk 0:02:54.3]} 3... d6 {[%clk 0:02:56.8]}
4. Ne2 {[%clk 0:02:53.4]} 4... Bd7 {[%clk 0:02:55.7]} 5. O-O {[%clk 0:02:51.5]}
5... g6 {[%clk 0:02:54.8]} 6. c3 {[%clk 0:02:50.1]} 6... Bg7 {[%clk 0:02:54.9]}
7. d4 {[%clk 0:02:49]} 7... cxd4 {[%clk 0:02:52.6]} 8. cxd4 {[%clk 0:02:48.6]}
8... e6 {[%clk 0:02:46.2]} 9. Nbc3 {[%clk 0:02:46.9]} 9... Qb6 {[%clk
0:02:42.4]} 10. Be3 {[%clk 0:02:45.3]} 10... Qc7 {[%clk 0:02:37.8]} 11. Rc1
{[%clk 0:02:43.6]} 11... Nge7 {[%clk 0:02:31.5]} 12. d5 {[%clk 0:02:40]} 12...
exd5 {[%clk 0:02:27.1]} 13. Nxd5 {[%clk 0:02:27.2]} 13... Qd8 {[%clk 0:02:18.4]}
14. Bg5 {[%clk 0:02:25.1]} 14... O-O {[%clk 0:02:10.2]} 15. Nf6+ {[%clk
0:02:10.3]} 15... Kh8 {[%clk 0:01:58.2]} 16. Qxd6 {[%clk 0:02:07.8]} 16... Bxf6
{[%clk 0:01:40.9]} 17. Bxf6+ {[%clk 0:02:03.4]} 17... Kg8 {[%clk 0:01:39.7]} 18.
Qf4 {[%clk 0:01:49.7]} 18... Rc8 {[%clk 0:01:27.8]} 19. Qh6 {[%clk 0:01:47.5]}
1-0